bitfinex/quotes_ETHUSD_20241120
["timestamp","ask_amount","ask_price","bid_price","bid_amount"]
[1732091934987,3.20592,3119.3,3118.6,4.03399]
[1732091935152,3.20592,3119.3,3118.7,3.2064]
[1732091935352,3.20592,3119.3,3118.8,3.20634]
[1732091935547,3.20592,3119.3,3118.6,4.03404]
[1732091935764,3.20602,3119.2,3118.6,4.03404]
[1732091936053,3.20608,3119.1,3118.6,4.03404]
[1732091936769,6.41222,3119.1,3118.6,0.8275]
[1732091936965,3.20608,3119.1,3118.6,0.8275]
[1732091937166,3.20622,3119.0,3118.6,0.8275]
[1732091938417,3.20603,3119.2,3118.6,0.8275]
[1732091938698,3.20589,3119.3,3118.6,0.8275]
[1732091938699,3.20612,3119.1,3118.6,0.8275]
[1732091939908,3.20632,3118.9,3118.6,0.8275]
[1732091940761,0.8111,3119.1,3118.6,0.8275]
[1732091941782,3.20616,3119.0,3118.6,0.8275]
[1732091943278,4.01718,3119.1,3118.6,0.8275]
[1732091943680,3.206,3119.2,3118.6,4.03398]
[1732091944415,3.206,3119.2,3118.6,4.03404]
[1732091944910,3.20605,3119.1,3118.6,4.03404]
[1732091946081,3.206,3119.2,3118.6,4.03404]
[1732091946303,3.20607,3119.1,3118.6,4.03404]
[1732091946507,3.206,3119.2,3118.6,4.03404]
[1732091946717,3.20565,3119.5,3118.8,3.2063]
[1732091946932,0.8111,3119.6,3118.9,0.8301]
[1732091947139,3.20566,3119.5,3119.0,3.20609]
[1732091947488,3.20566,3119.5,3118.9,0.8301]
[1732091948008,3.20566,3119.5,3118.9,4.03634]
[1732091948211,6.41139,3119.5,3118.9,4.03634]
[1732091948803,3.20566,3119.5,3118.9,4.03634]
[1732091949211,3.20566,3119.5,3119.0,3.20614]
[1732091949413,0.8111,3119.6,3119.1,3.20605]
[1732091949792,1.32951928,3119.8,3119.2,4.10012385]
[1732091949793,3.20543,3119.8,3119.2,4.10012385]
[1732091950127,3.20531,3119.9,3119.3,3.20578]
[1732091950499,3.20533,3119.8,3119.2,0.89420942]
[1732091950701,3.20533,3119.8,3119.2,0.8301]
[1732091950906,3.20558,3119.6,3119.2,0.8301]
[1732091951105,3.20558,3119.6,3118.9,0.06411037]
[1732091951106,3.20578,3119.4,3118.9,0.7816]
[1732091952144,3.20595,3119.2,3118.9,0.7816]
[1732091952347,3.20595,3119.2,3118.7,0.7816]
[1732091952506,3.20614,3119.1,3118.7,0.7816]
[1732091952908,3.20622,3119.0,3118.4,0.7816]
[1732091953167,3.20627,3118.9,3118.4,0.7816]
[1732091953443,3.20633,3118.9,3118.4,0.7816]
[1732091953817,3.20633,3118.9,3118.1,0.7816]
[1732091953818,0.8201,3118.8,3118.1,0.7816]
[1732091954152,3.20646,3118.7,3118.1,0.7816]
[1732091954450,3.20648,3118.7,3118.1,0.7816]
[1732091954619,6.40964151,3118.7,3118.1,3.98866]
[1732091954819,3.20308151,3118.7,3118.1,3.98866]
[1732091955179,0.8201,3118.8,3118.3,3.20678]
[1732091955312,3.20662,3118.6,3118.1,0.7816]
[1732091955713,3.2068,3118.4,3118.1,0.7816]
[1732091955947,3.20657,3118.6,3118.1,0.7816]
[1732091956245,3.20681,3118.4,3117.9,0.7816]
[1732091956446,0.8201,3119.0,3118.0,0.7816]
[1732091956661,0.8201,3119.0,3118.5,0.7816]
[1732091956807,3.0,3119.1,3118.5,3.98824]
[1732091957008,0.75355293,3119.0,3118.5,3.98824]
[1732091958249,2.14961928,3119.2,3118.5,0.7816]
[1732091958450,2.14961928,3119.2,3118.6,3.20656]
[1732091958784,0.8201,3119.2,3118.6,3.20656]
[1732091959255,0.8201,3119.2,3118.7,3.20639]
[1732091959424,6.20564,3119.5,3118.5,0.7816]
[1732091959425,3.8201,3119.5,3118.5,0.7816]
[1732091959754,1.32951928,3119.4,3118.8,3.20628]
[1732091961417,4.53526928,3119.4,3118.6,3.20649]
[1732091961959,4.53526928,3119.4,3118.7,3.20643]
[1732091963081,1.32951928,3119.4,3118.8,3.20635]
[1732091963279,1.32951928,3119.4,3118.8,3.20627]
[1732091963487,0.8201,3119.5,3118.9,3.20624]
[1732091963653,0.8201,3119.5,3119.0,3.98766]
[1732091964243,0.8201,3119.5,3119.0,0.7816]
[1732091966243,4.53507928,3119.6,3119.0,0.7816]
[1732091966452,0.8205,3119.7,3119.2,3.20586]
[1732091968484,0.8205,3119.7,3119.2,6.41172]
[1732091968656,0.8205,3119.7,3119.3,0.3198]
[1732091968866,0.8205,3119.7,3119.2,3.20591]
[1732091969661,0.8205,3119.7,3119.3,3.20582]
[1732091970305,0.8205,3119.7,3119.2,3.20591]
[1732091970681,0.8205,3119.7,3119.2,3.20587]
[1732091970860,0.8205,3119.7,3119.2,6.41174]
[1732091971063,0.8205,3119.7,3119.2,3.20587]
[1732091971308,0.8205,3119.7,3119.1,3.20602]
[1732091971868,4.02594,3119.7,3119.0,3.98771]
[1732091972068,5.35545928,3119.7,3119.0,3.98769]
[1732091972416,5.35545928,3119.7,3119.1,3.20602]
[1732091973198,5.35545928,3119.7,3119.0,3.98769]
[1732091973402,2.15001928,3119.7,3119.1,3.20596]
[1732091973765,5.35545928,3119.7,3119.1,3.20604]
[1732091973971,2.15001928,3119.7,3119.1,3.20604]
[1732091974204,5.35547928,3119.7,3119.0,3.98769]
[1732091974504,5.35547928,3119.7,3119.0,3.98766]
[1732091974983,5.35547928,3119.7,3119.1,3.20604]
[1732091976402,0.8205,3119.7,3119.1,3.20597]
[1732091976571,5.35524928,3119.9,3119.3,3.20584]
[1732091976774,2.15001928,3119.9,3119.3,3.20584]
[1732091977395,5.35527928,3119.9,3119.3,3.20584]
[1732091977602,2.15001928,3119.9,3119.3,3.20584]
[1732091978499,0.8205,3120.1,3119.6,3.20551]
[1732091978807,0.8205,3120.4,3119.8,3.20523]
[1732091979883,4.02522,3120.4,3119.8,3.20523]
[1732091980095,4.02522,3120.4,3119.7,3.20542]
[1732091980417,5.35473928,3120.4,3119.7,3.20542]
[1732091981630,3.20486,3120.3,3119.7,3.20542]
[1732091981927,3.20494,3120.2,3119.6,3.20552]
[1732091982091,5.35480928,3120.4,3119.7,3.20543]
[1732091982428,3.20485,3120.3,3119.7,3.20543]
[1732091982629,3.20494,3120.2,3119.5,4.00133]
[1732091982788,0.8043,3120.1,3119.5,4.00133]
[1732091982986,4.00934,3120.1,3119.5,4.00133]
[1732091983304,2.13381928,3119.8,3119.2,3.20593]
[1732091983496,5.33915928,3119.8,3119.2,3.20593]
[1732091983822,4.00964,3119.8,3119.2,3.20593]
[1732091984005,4.00964,3119.8,3119.1,0.8257]
[1732091984326,0.8043,3119.8,3119.2,3.20588]
[1732091984499,0.8043,3119.8,3119.1,0.8257]
[1732091984500,0.8043,3119.8,3119.4,3.20566]
[1732091985426,0.8043,3119.8,3119.4,3.20568]
[1732091986919,0.8043,3119.8,3119.5,3.20555]
[1732091987089,0.8043,3119.8,3119.4,3.20568]
[1732091987926,0.8043,3119.8,3119.5,3.20563]
[1732091989290,0.8043,3119.8,3119.4,3.20567]
[1732091989640,0.8043,3119.8,3119.5,3.20559]
[1732091989927,0.8043,3120.3,3119.8,3.20524]
[1732091990441,5.33869928,3120.3,3119.6,3.20549]
[1732091990725,5.33869928,3120.3,3119.6,6.41096]
[1732091990889,5.33869928,3120.3,3119.7,3.20541]
[1732091991331,5.33869928,3120.3,3119.5,0.8257]
[1732091991332,0.8043,3120.3,3119.8,3.20531]
[1732091993030,0.8043,3120.3,3119.9,3.20522]
[1732091993240,0.8043,3120.3,3119.8,3.20531]
[1732091993802,0.8043,3120.3,3119.8,3.20529]
[1732091994617,0.8043,3120.3,3119.5,0.8257]
[1732091994792,0.8043,3120.3,3119.8,3.20527]
[1732091995687,0.8043,3120.3,3119.8,6.41052]
[1732091995894,0.8043,3120.3,3119.8,3.20525]
[1732091998525,0.8043,3120.3,3120.0,3.20504]
[1732091998866,0.8043,3120.3,3120.0,3.20505]
[1732092000246,0.8043,3120.3,3119.8,3.20528]
[1732092000411,0.8043,3120.3,3119.5,0.8257]
[1732092000412,4.00912,3120.3,3119.6,3.20545]
[1732092000616,0.8229,3120.1,3119.6,3.20545]
[1732092000853,0.8229,3120.1,3119.7,3.20542]
[1732092001741,0.8229,3120.1,3119.4,3.2057]
[1732092001941,1.32951928,3120.0,3119.4,3.2057]
[1732092002155,3.20519,3120.0,3119.4,3.2057]
[1732092002359,3.20524,3119.9,3119.4,3.2057]
[1732092002680,0.8229,3119.8,3119.4,3.2057]
[1732092003150,0.8229,3119.8,3119.4,3.20566]
[1732092003315,0.8229,3119.8,3119.6,3.20553]
[1732092003513,0.8229,3119.8,3119.4,6.41132]
[1732092003758,0.8229,3119.8,3119.4,3.20566]
[1732092005772,0.8229,3119.8,3119.5,3.20562]
[1732092006067,0.8229,3119.8,3119.3,3.20576]
[1732092006272,0.8229,3119.8,3119.2,3.20591]
[1732092007259,0.8229,3119.8,3119.2,3.20587]
[1732092007431,0.8229,3119.8,3119.4,3.20572]
[1732092007939,0.8229,3119.8,3119.2,3.20587]
[1732092008835,4.02827,3119.8,3119.2,3.20587]
[1732092009234,3.20544,3119.7,3119.2,3.20587]
[1732092009657,3.20544,3119.7,3119.0,3.20612]
[1732092009658,3.20559,3119.6,3119.0,3.20612]
[1732092009866,0.7849,3119.5,3119.0,3.20612]
[1732092010368,0.7849,3119.5,3119.1,3.20602]
[1732092012089,0.7849,3119.5,3119.1,6.41199]
[1732092012386,0.7849,3119.5,3119.2,3.20593]
[1732092012599,0.7774,3119.8,3119.2,3.20593]
[1732092012893,0.7774,3119.8,3119.3,3.20581]
[1732092013253,0.7774,3119.8,3119.3,3.20576]
[1732092014086,0.7774,3119.8,3119.2,3.20589]
[1732092014247,3.98274,3119.8,3119.2,3.20589]
[1732092014749,3.98274,3119.8,3119.3,3.20583]
[1732092015785,0.7774,3119.8,3119.3,6.41166]
[1732092016087,0.7774,3119.8,3119.3,3.20583]
[1732092016456,0.7774,3119.8,3119.2,3.20588]
[1732092016457,3.98278,3119.8,3119.2,3.20588]
[1732092016786,0.7774,3119.8,3119.3,3.20576]
[1732092016955,3.98274,3119.8,3119.3,3.20576]
[1732092017161,0.7774,3119.8,3119.3,3.20576]
[1732092017378,0.7774,3119.8,3119.3,3.20578]
[1732092018168,0.7774,3120.0,3119.5,3.20561]
[1732092018354,0.02,3121.0,3119.4,2.08561928]
[1732092018355,0.7774,3120.2,3119.4,2.08561928]
[1732092018574,3.98232,3120.2,3119.6,3.20545]
[1732092018754,3.20502,3120.1,3119.6,3.20545]
[1732092018951,0.7774,3120.2,3119.7,3.20542]
[1732092019555,0.7774,3120.2,3119.6,3.20545]
[1732092019762,0.7774,3120.2,3119.8,3.20531]
[1732092020102,0.7774,3120.5,3120.1,3.20502]
[1732092020267,0.7774,3120.5,3120.0,3.20505]
[1732092020705,0.7774,3120.5,3119.9,0.78200353]
[1732092020908,0.7774,3120.5,3120.1,3.20499]
[1732092021055,1.32951928,3120.9,3120.3,3.20481]
[1732092021263,3.98172,3120.8,3120.3,3.20481]
[1732092021888,0.7774,3120.8,3120.3,3.20481]
[1732092022261,0.7774,3120.8,3120.4,3.20471]
[1732092023912,0.7774,3120.8,3120.5,3.20459]
[1732092024559,0.7774,3121.0,3120.5,3.20459]
[1732092024900,0.7774,3121.0,3120.4,0.7561]
[1732092024901,0.7774,3121.0,3120.4,3.20466]
[1732092025100,2.10691928,3121.0,3120.4,3.20462]
[1732092026011,5.31108928,3121.0,3120.4,3.20462]
[1732092026303,5.31108928,3121.0,3120.0,0.7561]
[1732092026304,0.7774,3121.0,3120.5,3.20453]
[1732092026667,0.7774,3121.0,3120.7,3.20434]
[1732092026868,3.20377,3121.4,3120.7,3.20434]
[1732092027079,3.20377,3121.4,3120.8,3.20429]
[1732092027291,3.601067,3121.4,3120.8,3.20429]
[1732092027598,3.20386,3121.3,3120.7,3.20434]
[1732092027803,0.7692,3121.1,3120.6,3.20445]
[1732092028214,0.7692,3121.1,3120.6,3.20448]
[1732092028521,0.7692,3121.1,3120.7,3.20439]
[1732092028691,0.7692,3121.1,3120.7,6.40871]
[1732092028891,0.7692,3121.1,3120.7,3.20432]
[1732092029286,3.2041,3121.0,3120.5,3.20456]
[1732092029828,0.7692,3121.1,3120.5,3.20456]
[1732092030010,3.97326,3121.1,3120.5,3.20456]
[1732092030211,0.7692,3121.1,3120.5,3.20456]
[1732092030391,3.20417,3121.0,3120.3,3.99149]
[1732092030595,3.97322,3121.1,3120.5,3.20459]
[1732092030805,3.97322,3121.1,3120.6,3.20449]
[1732092031511,0.7692,3121.1,3120.6,3.20449]
[1732092031718,0.7692,3121.1,3120.4,3.20469]
[1732092031887,0.7692,3121.1,3120.7,3.20434]
[1732092032086,0.7692,3121.1,3120.5,3.23403968]
[1732092032286,0.7692,3121.1,3120.8,0.02938329]
[1732092032486,0.7692,3121.1,3120.3,0.7867]
[1732092032700,0.7692,3121.1,3120.9,0.02935132]
[1732092032919,0.7692,3121.1,3120.8,3.20422]
[1732092033225,0.7692,3121.1,3121.0,0.02931935]
[1732092033423,0.7692,3121.1,3120.9,0.02935132]
[1732092033803,0.7692,3121.1,3120.8,3.20428]
[1732092033996,0.7692,3121.1,3120.9,0.02935132]
[1732092035827,0.7692,3121.1,3120.6,3.20443]
[1732092035994,0.7692,3121.1,3120.8,3.20429]
[1732092036193,0.7692,3121.1,3121.0,0.02931935]
[1732092036389,0.7692,3121.1,3120.9,0.02935132]
[1732092036622,0.7692,3121.1,3121.0,0.02931935]
[1732092036825,0.7692,3121.1,3120.6,3.20443]
[1732092036826,3.97319,3121.1,3120.6,3.20443]
[1732092037196,0.7692,3121.1,3121.0,0.02931935]
[1732092037396,0.7692,3121.1,3120.6,3.20443]
[1732092037397,0.7692,3121.1,3120.6,6.40885]
[1732092037818,0.7692,3121.1,3120.7,0.02941526]
[1732092038217,3.9732,3121.1,3120.7,0.02941526]
[1732092038619,3.20417,3121.0,3120.7,0.02941526]
[1732092038876,3.9732,3121.1,3120.5,3.20459]
[1732092039029,3.9732,3121.1,3120.8,0.02938329]
[1732092039236,3.9732,3121.1,3120.5,3.2046]
[1732092039429,7.17728,3121.1,3120.6,0.02944723]
[1732092039654,3.20421,3120.9,3120.6,0.02944723]
[1732092039951,7.17728,3121.1,3120.5,3.2046]
[1732092040160,3.20419,3121.0,3120.7,0.02941526]
[1732092040323,3.20421,3120.9,3120.6,0.02944723]
[1732092040663,3.20421,3120.9,3120.7,0.02941526]
[1732092040865,3.20421,3120.9,3120.3,3.99145]
[1732092041152,3.20421,3120.9,3120.8,0.02938328]
[1732092041362,3.20421,3120.9,3120.3,3.99145]
[1732092041363,3.20419,3121.0,3120.3,0.7867]
[1732092041564,3.20451,3120.6,3120.1,4.0032]
[1732092041718,3.20451,3120.6,3120.0,0.064088]
[1732092041719,3.20451,3120.6,3119.9,4.00341]
[1732092041919,3.20482,3120.3,3119.7,4.00354]
[1732092042120,3.20482,3120.3,3119.7,7.20891]
[1732092042320,0.8047,3120.5,3119.7,0.7982]
[1732092042554,0.8047,3120.5,3120.1,3.20493]
[1732092043327,4.85981021,3121.0,3120.3,3.20474]
[1732092043328,0.8047,3120.6,3120.3,3.20474]
[1732092043745,3.20421,3120.9,3120.3,6.40948]
[1732092043946,4.00891,3120.9,3120.4,3.2047]
[1732092044321,4.00891,3120.9,3120.3,3.20474]
[1732092044664,4.00891,3120.9,3120.1,6.40993]
[1732092044665,3.2043,3120.8,3120.1,6.40993]
[1732092045046,3.20449,3120.7,3120.1,3.20494]
[1732092045429,3.20461,3120.5,3120.0,3.20512]
[1732092046156,3.20461,3120.5,3119.7,4.00356]
[1732092046364,0.8047,3120.4,3119.8,3.20524]
[1732092046658,3.20482,3120.3,3119.8,3.20524]
[1732092046871,0.8047,3120.4,3119.5,4.00379]
[1732092046872,3.20492,3120.2,3119.5,4.00379]
[1732092047164,3.20535,3119.8,3119.3,0.7982]
[1732092047362,0.8047,3119.7,3119.2,3.20592]
[1732092047661,0.8047,3119.7,3119.2,0.0348658]
[1732092047866,0.8047,3119.7,3119.3,3.20583]
[1732092048041,0.8047,3119.7,3119.5,3.20562]
[1732092048243,0.8047,3119.7,3118.9,3.20622]
[1732092048244,0.8047,3119.7,3119.0,3.20605]
[1732092048443,3.20557,3119.6,3119.0,3.20605]
[1732092048645,3.20557,3119.6,3119.1,0.03490581]
[1732092050269,0.8047,3119.5,3119.1,0.03490581]
[1732092050766,4.01036,3119.5,3119.1,0.03490581]
[1732092050968,0.8047,3119.5,3119.1,0.03490581]
[1732092051169,0.8047,3119.5,3118.8,3.20634]
[1732092051347,0.8047,3119.5,3119.2,0.03218382]
[1732092051553,0.8047,3119.5,3118.8,3.20634]
[1732092051871,0.8047,3119.5,3119.1,3.20602]
[1732092052270,0.8047,3119.5,3119.0,3.20608]
[1732092052271,0.8047,3119.5,3119.2,3.23809382]
[1732092052640,0.8047,3119.7,3119.6,3.20553]
[1732092052844,0.8047,3120.1,3119.6,3.20553]
[1732092053045,1.425195,3120.1,3119.6,3.20553]
[1732092053243,0.8047,3120.1,3119.6,3.20553]
[1732092054736,0.8047,3120.1,3119.8,3.20524]
[1732092055275,0.8047,3120.4,3120.0,3.20511]
[1732092056447,0.8047,3120.4,3120.0,3.20505]
[1732092057186,0.8047,3120.4,3120.1,3.20496]
[1732092057388,0.8047,3120.4,3119.6,0.06409752]
[1732092057947,0.8047,3120.4,3120.2,3.20489]
[1732092058154,0.8047,3120.7,3120.2,3.20489]
[1732092058470,0.8047,3120.7,3120.4,3.20471]
[1732092058643,0.8047,3120.7,3120.2,3.20489]
[1732092059049,0.8047,3120.7,3120.2,3.20485]
[1732092059761,4.00911,3120.7,3120.2,3.20485]
[1732092060632,0.8047,3120.7,3120.3,3.20478]
[1732092060787,0.8047,3120.7,3120.1,3.20496]
[1732092061187,0.8047,3120.7,3120.2,3.20486]
[1732092066223,4.00918,3120.7,3120.1,3.20502]
[1732092066387,3.20452,3120.6,3120.0,4.00328]
[1732092066715,3.925869,3120.6,3120.0,3.20508]
[1732092066912,3.20452,3120.6,3120.0,3.20508]
[1732092067417,3.20395,3121.2,3119.8,3.20529]
[1732092067418,0.8047,3121.2,3120.1,0.86229198]
[1732092067730,3.20428,3120.9,3120.1,4.00318]
[1732092067910,4.00902,3120.8,3120.3,3.2048]
[1732092068429,0.8047,3120.8,3120.6,3.20444]
[1732092069011,0.8047,3120.8,3120.5,3.2046]
[1732092070600,0.8047,3120.8,3120.3,3.20473]
[1732092070771,0.8047,3120.8,3120.4,3.2047]
[1732092072090,0.8047,3120.8,3120.3,3.20481]
[1732092072285,0.8047,3120.8,3120.4,3.20469]
[1732092072929,0.8047,3120.8,3120.4,3.20465]
[1732092073117,3.20393,3121.2,3120.6,3.20444]
[1732092073292,0.7959,3121.1,3120.7,3.2044]
[1732092073803,0.7959,3121.1,3120.6,3.2045]
[1732092074390,4.43333561,3121.1,3120.5,0.7627]
[1732092074587,3.20411,3121.0,3120.4,6.40928]
[1732092074789,3.20411,3121.0,3120.5,3.20461]
[1732092075012,3.20411,3121.0,3120.4,3.20464]
[1732092075246,3.20411,3121.0,3120.5,3.20461]
[1732092075596,3.20411,3121.0,3120.4,3.20464]
[1732092075988,3.20411,3121.0,3120.4,6.40929]
[1732092076192,3.20411,3121.0,3120.5,3.20458]
[1732092076618,3.20411,3121.0,3120.4,3.20464]
[1732092077005,3.20411,3121.0,3120.4,6.40928]
[1732092077531,3.20411,3121.0,3120.4,3.20464]
[1732092077739,3.20421,3120.9,3120.4,3.20464]
[1732092078033,3.20411,3121.0,3120.4,3.20464]
[1732092079111,3.20411,3121.0,3120.4,6.40929]
[1732092080113,0.7959,3120.9,3120.4,3.20464]
[1732092080514,0.7959,3120.9,3120.2,3.96757]
[1732092080814,0.7959,3120.9,3120.4,3.20466]
[1732092081237,0.7959,3120.9,3120.4,3.20463]
[1732092081911,0.7959,3120.9,3120.6,3.20444]
[1732092083444,0.7959,3120.9,3120.7,3.2044]
[1732092083799,0.7959,3121.1,3120.7,3.2044]
[1732092083999,0.7959,3121.1,3120.5,3.20453]
[1732092084199,0.7959,3121.1,3120.6,3.20444]
[1732092084900,3.9999,3121.1,3120.5,3.20453]
[1732092085095,4.85322125,3121.1,3120.5,3.20453]
[1732092085300,4.85322125,3121.1,3120.5,6.40907]
[1732092085501,0.7959,3121.1,3120.5,3.20453]
[1732092085746,0.7959,3121.1,3120.7,3.2044]
[1732092087240,0.7959,3121.1,3120.8,3.20428]
[1732092087535,0.7959,3121.1,3120.7,3.2044]
[1732092088149,0.7841,3120.9,3120.5,3.20454]
[1732092088305,0.7841,3120.9,3120.5,6.40907]
[1732092088507,0.7841,3120.9,3120.6,3.20443]
[1732092088718,0.7841,3120.9,3120.5,3.20453]
[1732092089518,0.7841,3120.9,3120.6,3.20445]
[1732092090055,0.7841,3120.9,3120.7,3.2044]
[1732092090707,0.7841,3120.9,3120.5,3.20453]
[1732092091953,0.7841,3120.9,3120.7,6.40866]
[1732092092241,6.4075,3121.4,3120.7,6.40866]
[1732092092242,0.7841,3121.1,3120.8,3.2043]
[1732092092612,0.7841,3121.1,3120.7,3.20432]
[1732092092806,0.7841,3121.1,3120.9,3.20419]
[1732092093007,3.20373,3121.4,3120.9,3.20419]
[1732092093008,0.7841,3121.4,3120.9,3.20419]
[1732092093649,0.7841,3121.4,3121.1,3.20398]
[1732092093846,0.7841,3121.4,3121.1,6.4079]
[1732092094007,0.7841,3121.4,3120.6,0.8303]
[1732092094008,0.7841,3121.4,3120.9,3.20412]
[1732092094206,0.7841,3121.4,3121.1,3.20399]
[1732092094461,0.7841,3121.6,3121.1,3.20399]
[1732092094639,0.7841,3121.8,3121.4,3.20367]
[1732092095316,1.63608225,3121.8,3121.4,3.20367]
[1732092095731,1.63608225,3121.8,3121.2,6.4077]
[1732092095903,0.7841,3121.8,3121.3,3.20378]
[1732092096103,3.98738,3121.8,3121.3,3.20378]
[1732092096704,3.20292,3122.2,3121.4,0.06407362]
[1732092096909,0.7841,3122.1,3121.8,3.20319]
[1732092097210,3.98674,3122.5,3121.8,3.20323]
[1732092097408,5.31615246,3122.5,3121.8,6.40644]
[1732092097734,3.20268,3122.4,3121.8,3.20319]
[1732092097938,3.20268,3122.4,3121.7,3.20329]
[1732092098282,3.20276,3122.3,3121.7,3.20331]
[1732092098479,3.20268,3122.4,3121.8,3.20322]
[1732092099775,0.7841,3122.5,3121.8,3.20322]
[1732092099978,0.7841,3122.5,3122.0,3.20306]
[1732092100762,0.7841,3122.5,3122.1,3.20288]
[1732092100965,0.7841,3122.5,3122.2,3.20286]
[1732092101185,0.7841,3122.5,3122.0,3.20303]
[1732092101583,0.7841,3122.5,3122.0,3.00303]
[1732092101884,0.7841,3122.5,3122.1,3.20297]
[1732092102375,0.8311,3122.4,3121.7,3.20331]
[1732092102688,0.8311,3122.4,3121.8,3.2032]
[1732092103681,3.2028,3122.3,3121.8,3.2032]
[1732092103841,3.2028,3122.3,3121.6,3.99304]
[1732092104042,0.8311,3122.0,3121.5,3.20356]
[1732092104888,4.03421,3122.0,3121.5,3.20356]
[1732092105282,0.8311,3121.7,3120.8,0.7896]
[1732092105439,0.8311,3121.7,3121.0,3.204]
[1732092105819,4.03449,3121.7,3121.2,3.20387]
[1732092106088,3.2028,3122.3,3121.8,3.20327]
[1732092106089,4.03395,3122.3,3121.8,3.20327]
[1732092106381,4.03395,3122.3,3121.7,3.20336]
[1732092106552,4.757604,3122.3,3121.7,3.20336]
[1732092106756,3.20287,3122.2,3121.6,3.20345]
[1732092106946,3.20287,3122.2,3121.6,3.20341]
[1732092107286,3.20307,3122.1,3121.5,3.20358]
[1732092107588,3.20287,3122.2,3121.6,3.20345]
[1732092107757,0.8311,3122.3,3121.8,3.2032]
[1732092108477,1.23448,3122.3,3121.8,3.20326]
[1732092108691,1.23448,3122.3,3121.3,3.99336]
[1732092108871,0.8311,3122.3,3121.9,3.2031]
[1732092109449,0.8311,3122.3,3122.0,3.20304]
[1732092109681,0.8312,3122.5,3122.1,3.20295]
[1732092110114,0.8312,3122.5,3122.1,3.20288]
[1732092110722,0.8312,3122.5,3122.2,3.20286]
[1732092110910,0.8312,3122.5,3121.9,0.8059]
[1732092110911,0.8312,3122.5,3121.9,4.00903]
[1732092111093,0.8312,3122.5,3121.9,4.00905]
[1732092111300,4.03382,3122.5,3121.9,3.20315]
[1732092111527,3.20267,3122.4,3121.7,3.20337]
[1732092111743,0.8312,3122.3,3121.9,3.20315]
[1732092112023,0.8312,3122.3,3121.7,3.20329]
[1732092112323,4.03396,3122.3,3121.7,3.20329]
[1732092112884,4.03396,3122.3,3121.5,4.00945]
[1732092112885,3.20294,3122.2,3121.5,4.00945]
[1732092113109,0.8312,3122.1,3121.5,3.20355]
[1732092113360,3.20308,3122.0,3121.5,3.20355]
[1732092113629,3.20315,3122.0,3121.3,4.00966]
[1732092113823,3.20315,3122.0,3121.4,3.20365]
[1732092114623,0.8312,3121.8,3121.0,4.00991]
[1732092114932,0.8312,3121.8,3121.1,6.20391]
[1732092114933,4.03448,3121.8,3121.1,6.20391]
[1732092115132,4.03448,3121.8,3121.0,4.00999]
[1732092115429,0.8312,3121.8,3121.2,3.20387]
[1732092115582,0.8312,3121.8,3121.2,3.20381]
[1732092115782,0.8312,3121.8,3121.3,3.20373]
[1732092116133,0.8312,3122.1,3121.5,0.8059]
[1732092116442,3.20313,3122.0,3121.4,3.20363]
[1732092116613,3.20324,3121.9,3121.2,4.00976]
[1732092116790,3.2033,3121.8,3121.2,4.00976]
[1732092118407,0.8312,3121.6,3121.0,3.20402]
[1732092118607,0.8312,3121.6,3121.1,3.20393]
[1732092119519,4.03469,3121.6,3121.0,3.20402]
[1732092120040,3.20365,3121.5,3120.9,3.8059]
[1732092120242,3.20369,3121.4,3120.8,3.20421]
[1732092120401,0.8312,3121.5,3120.7,0.8059]
[1732092120593,0.8312,3121.0,3120.5,4.01045]
[1732092120794,0.8312,3121.0,3120.5,0.8059]
[1732092120795,4.03531,3121.0,3120.5,0.8059]
[1732092121038,0.8312,3121.0,3120.5,0.8059]
[1732092121238,0.8312,3121.0,3120.6,3.2045]
[1732092122508,0.8312,3121.0,3120.5,0.8059]
[1732092122709,0.8312,3121.0,3120.4,3.20467]
[1732092122912,3.20428,3120.9,3120.2,0.8059]
[1732092123101,3.20428,3120.9,3120.3,3.20481]
[1732092123710,3.20447,3120.7,3120.2,0.8059]
[1732092123917,0.8312,3120.6,3120.1,3.20496]
[1732092124208,3.20461,3120.5,3120.0,0.8059]
[1732092124601,3.20471,3120.4,3119.8,0.8059]
[1732092124797,3.20489,3120.3,3119.8,0.8059]
[1732092125031,3.20489,3120.3,3119.7,3.20535]
[1732092125032,3.20493,3120.2,3119.5,0.8059]
[1732092125243,3.20493,3120.2,3119.6,3.20552]
[1732092125438,0.8312,3120.1,3119.6,3.20552]
[1732092126024,3.20475,3120.4,3119.6,3.20552]
[1732092126241,0.8312,3120.3,3119.6,3.20552]
[1732092126536,0.8312,3120.3,3119.8,3.20532]
[1732092126899,0.8312,3120.3,3119.6,3.2055]
[1732092127094,4.03609,3120.3,3119.6,3.2524214]
[1732092127339,3.20498,3120.2,3119.5,0.85290241]
[1732092127639,3.20498,3120.2,3119.5,4.05853241]
[1732092128202,3.20498,3120.2,3119.5,0.8059]
[1732092128426,3.20498,3120.2,3119.4,3.0]
[1732092128427,3.20513,3120.0,3119.4,3.0]
[1732092129363,3.20513,3120.0,3119.4,3.06410203]
[1732092129702,3.20498,3120.2,3119.4,3.06410203]
[1732092130029,3.20498,3120.2,3119.5,3.20561]
[1732092130238,4.03608,3120.3,3119.4,3.06410203]
[1732092130421,3.2051,3120.1,3119.5,3.20564]
[1732092130750,0.8312,3120.3,3119.4,0.06410203]
[1732092131048,3.20521,3120.0,3119.5,3.0]
[1732092131206,4.03604,3120.3,3119.5,3.0]
[1732092131542,0.8312,3120.3,3119.9,3.20522]
[1732092131718,0.8312,3120.3,3119.7,0.8077]